fUST/lending_fUST_20250805
["ID","MTS","AMOUNT","RATE_DAILY","PERIOD"]
[377429500,1754409056291,-151.0,0.00028736,7]
[377429501,1754409056300,-151.0,0.00028736,7]
[377429502,1754409056310,-460.0,0.00028736,2]
[377429503,1754409056324,-7022.94278974,0.00028767,2]
[377429504,1754409056335,-151.0,0.00028767,7]
[377429505,1754409056346,-151.0,0.00028767,7]
[377429506,1754409056357,-151.0,0.00028767,7]
[377429507,1754409056366,-460.0,0.00028767,2]
[377429508,1754409056375,-151.0,0.00028767,7]
[377429509,1754409056385,-460.0,0.00028767,2]
[377429510,1754409056396,-460.0,0.00028767,2]
[377429511,1754409056405,-460.0,0.00028767,2]
[377429512,1754409056415,-460.0,0.00028767,2]
[377429513,1754409056425,-460.0,0.00028767,2]
[377429514,1754409056435,-327.68378311,0.00028767,2]
[377429515,1754409056446,-845.72,0.00028767,2]
[377429516,1754409056456,-619.42,0.00028767,2]
[377429517,1754409056467,-460.0,0.00028767,2]
[377429518,1754409056477,-460.0,0.00028767,2]
[377429519,1754409056487,-460.0,0.00028767,2]
[377429520,1754409056498,-460.0,0.00028767,2]
[377429521,1754409056508,-401.30528499,0.00028767,2]
[377429523,1754409056518,-557.31513292,0.00028767,2]
[377429525,1754409056528,-202.31635369,0.00028767,2]
[377429527,1754409056538,-799.22,0.00028767,2]
[377429528,1754409056547,-506.26,0.00028767,2]
[377429530,1754409056556,-460.0,0.00028767,2]
[377429532,1754409056567,-460.0,0.00028767,2]
[377429534,1754409056580,-460.0,0.00028767,2]
[377429535,1754409056590,-911.51,0.00028767,2]
[377429536,1754409056600,-460.0,0.00028767,2]
[377429537,1754409056609,-460.0,0.00028767,2]
[377429538,1754409056619,-557.39,0.00028767,2]
[377429540,1754409056628,-460.0,0.00028767,2]
[377429541,1754409056638,-756.93,0.00028767,2]
[377429542,1754409056647,-225.49197587,0.00028767,2]
[377429543,1754409056657,-460.0,0.00028767,2]
[377429544,1754409056667,-1414.05,0.00028767,2]
[377429545,1754409056677,-460.0,0.00028767,2]
[377429546,1754409056687,-460.0,0.00028767,2]
[377429547,1754409056696,-3511.45,0.00028767,2]
[377429548,1754409056706,-460.0,0.00028767,2]
[377429549,1754409056716,-460.0,0.00028767,2]
[377429550,1754409056725,-654.72,0.00028767,2]
[377429551,1754409056735,-673.35,0.00028767,2]
[377429552,1754409056744,-2081.36,0.00028767,2]
[377429553,1754409056754,-460.0,0.00028767,2]
[377429554,1754409056764,-1175.62,0.00028767,2]
[377429555,1754409056773,-460.0,0.00028767,2]
[377429556,1754409056783,-1689.44,0.00028767,2]
[377429557,1754409056793,-307.16405024,0.00028767,2]
[377429558,1754409056802,-460.0,0.00028767,2]
[377429559,1754409056812,-460.0,0.00028767,2]
[377429560,1754409056824,-460.0,0.00028767,2]
[377429561,1754409056833,-1728.56,0.00028767,2]
[377429562,1754409056843,-697.8,0.00028767,2]
[377429563,1754409056853,-222.83381725,0.00028767,2]
[377429564,1754409056863,-982.92,0.00028767,2]
[377429565,1754409056873,-460.0,0.00028767,2]
[377429566,1754409056882,-708.67,0.00028767,2]
[377429567,1754409056892,-1169.66,0.00028767,2]
[377429568,1754409056901,-839.68,0.00028767,2]
[377429569,1754409056911,-460.0,0.00028767,2]
[377429570,1754409056921,-263.01861444,0.00028767,2]
[377429571,1754409056931,-570.44,0.00028767,2]
[377429572,1754409056940,-460.0,0.00028767,2]
[377429573,1754409056950,-460.0,0.00028767,2]
[377429574,1754409056959,-460.0,0.00028767,2]
[377429575,1754409056969,-961.19,0.00028767,2]
[377429576,1754409056978,-460.0,0.00028767,2]
[377429577,1754409056987,-460.0,0.00028767,2]
[377429578,1754409057066,-460.0,0.00028767,2]
[377429579,1754409057079,-471.73,0.00028767,2]
[377429580,1754409057089,-460.0,0.00028767,2]
[377429581,1754409057099,-460.0,0.00028767,2]
[377429582,1754409057109,-2396.86,0.00028767,2]
[377429583,1754409057118,-460.0,0.00028767,2]
[377429584,1754409057128,-789.91,0.00028767,2]
[377429585,1754409057139,-460.0,0.00028767,2]
[377429586,1754409057148,-460.0,0.00028767,2]
[377429587,1754409057158,-871.01,0.00028767,2]
[377429588,1754409057168,-460.0,0.00028767,2]
[377429589,1754409057178,-464.59765188,0.00028767,2]
[377429590,1754409057187,-460.0,0.00028767,2]
[377429591,1754409057196,-711.15,0.00028767,2]
[377429592,1754409057206,-1056.26,0.00028767,2]
[377429593,1754409057216,-465.03013377,0.00028767,2]
[377429594,1754409057225,-460.0,0.00028767,2]
[377429595,1754409057235,-1053.24,0.00028767,2]
[377429596,1754409057244,-468.11,0.00028767,2]
[377429597,1754409057254,-642.56,0.00028767,2]
[377429598,1754409057263,-709.8,0.00028767,2]
[377429599,1754409057273,-597.19323923,0.00028767,2]
[377429600,1754409057283,-460.0,0.00028767,2]
[377429601,1754409057293,-212.33975691,0.00028767,2]
[377429602,1754409057313,-514.83,0.00028767,2]
[377429603,1754409057326,-460.0,0.00028767,2]
[377429604,1754409057336,-460.0,0.00028767,2]
[377429605,1754409057347,-1935.53,0.00028767,2]
[377429606,1754409057360,-1191.82,0.00028767,2]
[377429607,1754409057370,-490.45,0.00028767,2]
[377429608,1754409057380,-1284.43,0.00028767,2]
[377429609,1754409057391,-546.3,0.00028767,2]
[377429610,1754409057400,-676.59,0.00028767,2]
[377429611,1754409057410,-460.0,0.00028767,2]
[377429612,1754409057419,-460.0,0.00028767,2]
[377429613,1754409057432,-541.21,0.00028767,2]
[377429614,1754409057442,-464.26118888,0.00028767,2]
[377429615,1754409057451,-740.58,0.00028767,2]
[377429616,1754409057461,-460.0,0.00028767,2]
[377429617,1754409057471,-460.0,0.00028767,2]
[377429618,1754409057480,-460.0,0.00028767,2]
[377429619,1754409057490,-460.0,0.00028767,2]
[377429620,1754409057500,-460.0,0.00028767,2]
[377429621,1754409057509,-460.0,0.00028767,2]
[377429622,1754409057520,-500.0,0.00028767,2]
[377429623,1754409057529,-556.84,0.00028767,2]
[377429624,1754409057539,-460.0,0.00028767,2]
[377429625,1754409057549,-460.0,0.00028767,2]
[377429626,1754409057559,-460.0,0.00028767,2]
[377429627,1754409057571,-460.0,0.00028767,2]
[377429628,1754409057581,-460.0,0.00028767,2]
[377429629,1754409057590,-4337.79,0.00028767,2]
[377429630,1754409057600,-460.0,0.00028767,2]
[377429631,1754409057610,-1000.0,0.00028768,2]
[377429632,1754409057620,-350.0,0.00028768,5]
[377429633,1754409057630,-465.19542519,0.00028801,2]
[377429634,1754409057640,-460.0,0.00028801,2]
[377429635,1754409057650,-460.0,0.00028801,2]
[377429636,1754409057659,-460.0,0.00028801,2]
[377429637,1754409057670,-460.0,0.00028801,2]
[377429638,1754409057679,-351.4726924,0.00028801,2]
[377429639,1754409057689,-217.72414914,0.00028802,2]
[377429640,1754409057700,-554.88419141,0.00028802,2]
[377429641,1754409057709,-464.06820011,0.00028802,2]
[377429642,1754409057719,-500.0,0.00028802,5]
[377429643,1754409057729,-460.0,0.00028802,2]
[377429644,1754409057739,-460.0,0.00028802,2]
[377429645,1754409057749,-460.0,0.00028802,2]
[377429646,1754409057758,-370.33555827,0.00028802,2]
[377429647,1754409057768,-549.47,0.00028802,2]
[377429648,1754409057777,-460.0,0.00028802,2]
[377429649,1754409057787,-566.7,0.00028802,2]
[377429650,1754409057796,-569.20099727,0.00028802,2]
[377429651,1754409057806,-467.41,0.00028802,2]
[377429652,1754409057815,-460.0,0.00028802,2]
[377429653,1754409057827,-460.0,0.00028802,2]
[377429654,1754409057836,-460.0,0.00028802,2]
[377429655,1754409057846,-360.0,0.00028814,2]
[377429656,1754409057856,-151.0,0.0002887,7]
[377429657,1754409057866,-151.0,0.0002887,7]
[377429658,1754409057876,-164.987345,0.0002887,7]
[377429659,1754409057885,-151.0,0.0002887,7]
[377429660,1754409057895,-195.826118,0.0002887,7]
[377429661,1754409057905,-195.826118,0.0002887,7]
[377429662,1754409057914,-1000.0,0.00029,3]
[377429663,1754409057923,-527.3554621,0.00029,10]
[377429664,1754409057933,-312.16666667,0.00029,10]
[377429665,1754409057942,-1212.8,0.0002901,2]
[377429666,1754409057952,-472.47,0.0002901,2]
[377429667,1754409057962,-299.064126,0.0002901,7]
[377429668,1754409057971,-151.0,0.0002901,7]
[377429669,1754409057981,-154.5789,0.0002901,7]
[377429670,1754409057992,-2000.0,0.00029016,5]
[377429671,1754409058006,-151.0,0.00029041,7]
[377429672,1754409058016,-151.0,0.00029041,7]
[377429673,1754409058025,-151.932771,0.00029041,7]
[377429674,1754409058035,-460.0,0.00029041,2]
[377429675,1754409058044,-151.0,0.00029041,7]
[377429676,1754409058054,-240.408703,0.00029041,7]
[377429677,1754409058063,-460.0,0.00029041,2]
[377429678,1754409058075,-460.0,0.00029041,2]
[377429679,1754409058085,-460.0,0.00029041,2]
[377429680,1754409058095,-460.0,0.00029041,2]
[377429681,1754409058104,-845.72,0.00029041,2]
[377429682,1754409058114,-619.42,0.00029041,2]
[377429683,1754409058126,-460.0,0.00029041,2]
[377429684,1754409058136,-460.0,0.00029041,2]
[377429685,1754409058146,-460.0,0.00029041,2]
[377429686,1754409058156,-460.0,0.00029041,2]
[377429687,1754409058166,-799.22,0.00029041,2]
[377429688,1754409058175,-506.26,0.00029041,2]
[377429689,1754409058185,-460.0,0.00029041,2]
[377429690,1754409058195,-460.0,0.00029041,2]
[377429691,1754409058205,-321.14,0.00029041,2]
[377429692,1754409058214,-911.51,0.00029041,2]
[377429693,1754409058224,-460.0,0.00029041,2]
[377429694,1754409058234,-460.0,0.00029041,2]
[377429695,1754409058244,-557.39,0.00029041,2]
[377429696,1754409058254,-228.77,0.00029041,2]
[377429697,1754409058263,-756.93,0.00029041,2]
[377429698,1754409058273,-460.0,0.00029041,2]
[377429699,1754409058282,-1414.05,0.00029041,2]
[377429700,1754409058364,-460.0,0.00029041,2]
[377429701,1754409058374,-460.0,0.00029041,2]
[377429702,1754409058391,-3511.45,0.00029041,2]
[377429703,1754409058402,-460.0,0.00029041,2]
[377429704,1754409058411,-460.0,0.00029041,2]
[377429705,1754409058420,-654.72,0.00029041,2]
[377429706,1754409058431,-673.35,0.00029041,2]
[377429707,1754409058441,-2081.36,0.00029041,2]
[377429708,1754409058451,-460.0,0.00029041,2]
[377429709,1754409058460,-1175.62,0.00029041,2]
[377429710,1754409058472,-460.0,0.00029041,2]
[377429711,1754409058485,-1689.44,0.00029041,2]
[377429712,1754409058495,-201.86858639,0.00029041,2]
[377429713,1754409058505,-496.0,0.00029041,2]
[377429714,1754409058514,-460.0,0.00029041,2]
[377429715,1754409058524,-1728.56,0.00029041,2]
[377429716,1754409058534,-697.8,0.00029041,2]
[377429717,1754409058544,-982.92,0.00029041,2]
[377429718,1754409058556,-460.0,0.00029041,2]
[377429719,1754409058565,-708.67,0.00029041,2]
[377429720,1754409058577,-1169.66,0.00029041,2]
[377429721,1754409058587,-839.68,0.00029041,2]
[377429722,1754409058597,-460.0,0.00029041,2]
[377429723,1754409058607,-570.44,0.00029041,2]
[377429724,1754409058616,-460.0,0.00029041,2]
[377429725,1754409058626,-460.0,0.00029041,2]
[377429726,1754409058636,-460.0,0.00029041,2]
[377429727,1754409058646,-961.19,0.00029041,2]
[377429728,1754409058656,-460.0,0.00029041,2]
[377429729,1754409058666,-460.0,0.00029041,2]
[377429730,1754409058676,-460.0,0.00029041,2]
[377429731,1754409058686,-471.73,0.00029041,2]
[377429732,1754409058696,-460.0,0.00029041,2]
[377429733,1754409058706,-460.0,0.00029041,2]
[377429734,1754409058716,-2396.86,0.00029041,2]
[377429735,1754409058726,-460.0,0.00029041,2]
[377429736,1754409058736,-789.91,0.00029041,2]
[377429737,1754409058746,-460.0,0.00029041,2]
[377429738,1754409058756,-592.97356194,0.00029041,2]
[377429739,1754409058765,-871.01,0.00029041,2]
[377429740,1754409058775,-460.0,0.00029041,2]
[377429741,1754409058785,-460.0,0.00029041,2]
[377429742,1754409058794,-711.15,0.00029041,2]
[377429743,1754409058804,-1056.26,0.00029041,2]
[377429744,1754409058814,-460.0,0.00029041,2]
[377429745,1754409058825,-1053.24,0.00029041,2]
[377429746,1754409058835,-468.11,0.00029041,2]
[377429747,1754409058845,-642.56,0.00029041,2]
[377429748,1754409058855,-709.8,0.00029041,2]
[377429749,1754409058865,-460.0,0.00029041,2]
[377429750,1754409058875,-514.83,0.00029041,2]
[377429751,1754409058884,-460.0,0.00029041,2]
[377429752,1754409058894,-460.0,0.00029041,2]
[377429753,1754409058904,-1935.53,0.00029041,2]
[377429754,1754409058914,-1191.82,0.00029041,2]
[377429755,1754409058923,-490.45,0.00029041,2]
[377429756,1754409058933,-1284.43,0.00029041,2]
[377429757,1754409058944,-546.3,0.00029041,2]
[377429758,1754409058953,-676.59,0.00029041,2]
[377429759,1754409058963,-460.0,0.00029041,2]
[377429760,1754409058973,-460.0,0.00029041,2]
[377429761,1754409058983,-541.21,0.00029041,2]
[377429762,1754409058995,-740.58,0.00029041,2]
[377429763,1754409059005,-319.59373075,0.00029041,2]
[377429764,1754409059014,-598.17,0.00029041,2]
[377429765,1754409059024,-460.0,0.00029041,2]
[377429766,1754409059035,-460.0,0.00029041,2]
[377429767,1754409059044,-460.0,0.00029041,2]
[377429768,1754409059054,-460.0,0.00029041,2]
[377429769,1754409059064,-500.0,0.00029041,2]
[377429770,1754409059075,-556.84,0.00029041,2]
[377429771,1754409059084,-460.0,0.00029041,2]
[377429772,1754409059094,-460.0,0.00029041,2]
[377429773,1754409059104,-460.0,0.00029041,2]
[377429774,1754409059115,-460.0,0.00029041,2]
[377429775,1754409059125,-460.0,0.00029041,2]
[377429776,1754409059134,-460.0,0.00029041,2]
[377429777,1754409059144,-4337.79,0.00029041,2]
[377429778,1754409059154,-460.0,0.00029075,2]
[377429779,1754409059164,-460.0,0.00029075,2]
[377429780,1754409059173,-460.0,0.00029075,2]
[377429781,1754409059184,-500.0,0.00029076,5]
[377429782,1754409059193,-460.0,0.00029076,2]
[377429783,1754409059203,-460.0,0.00029076,2]
[377429784,1754409059212,-460.0,0.00029076,2]
[377429785,1754409059222,-549.47,0.00029076,2]
[377429786,1754409059231,-460.0,0.00029076,2]
[377429787,1754409059240,-566.7,0.00029076,2]
[377429788,1754409059251,-467.41,0.00029076,2]
[377429789,1754409059260,-460.0,0.00029076,2]
[377429790,1754409059270,-475.93140637,0.00029076,2]
[377429791,1754409059279,-460.0,0.00029076,2]
[377429792,1754409059290,-500.0,0.00029082,2]
[377429793,1754409059300,-460.0,0.00029082,2]
[377429794,1754409059309,-460.0,0.00029082,2]
[377429795,1754409059319,-1382.4,0.00029082,2]
[377429796,1754409059329,-84687.25,0.00029082,2]
[377429797,1754409059339,-556.78,0.00029082,2]
[377429798,1754409059349,-151.0,0.00029144,7]
[377429799,1754409059362,-164.987345,0.00029144,7]
[377429800,1754409059372,-151.0,0.00029144,7]
[377429801,1754409059382,-195.826118,0.00029144,7]
[377429802,1754409059393,-195.826118,0.00029144,7]
[377429803,1754409059403,-420.0,0.00029149,2]
[377429804,1754409059413,-1059.0,0.0002916,2]
[377429805,1754409059423,-480.0,0.00029191,2]
[377429806,1754409059433,-213.67682507,0.00029213,11]
[377429807,1754409059443,-1021.2704496,0.00029273,30]
[377429808,1754409059453,-153.0,0.00029273,30]
[377429809,1754409059463,-153.0,0.00029273,30]
[377429810,1754409059473,-153.0,0.00029273,30]
[377429811,1754409059482,-1212.8,0.00029284,2]
[377429812,1754409059492,-472.47,0.00029284,2]
[377429813,1754409059588,-500.0,0.00029315,7]
[377429814,1754409059598,-460.0,0.00029315,2]
[377429815,1754409059608,-460.0,0.00029315,2]
[377429816,1754409059618,-460.0,0.00029315,2]
[377429817,1754409059629,-460.0,0.00029315,2]
[377429818,1754409059639,-460.0,0.00029315,2]
[377429819,1754409059649,-845.72,0.00029315,2]
[377429820,1754409059659,-619.42,0.00029315,2]
[377429821,1754409059669,-460.0,0.00029315,2]
[377429822,1754409059679,-239.33221569,0.00029315,2]
[377429823,1754409059689,-460.0,0.00029315,2]
[377429824,1754409059698,-460.0,0.00029315,2]
[377429825,1754409059708,-799.22,0.00029315,2]
[377429826,1754409059718,-506.26,0.00029315,2]
[377429827,1754409059728,-460.0,0.00029315,2]
[377429828,1754409059738,-460.0,0.00029315,2]
[377429829,1754409059748,-911.51,0.00029315,2]
[377429830,1754409059758,-469.33498672,0.00029315,2]
[377429831,1754409059768,-460.0,0.00029315,2]
[377429832,1754409059778,-557.39,0.00029315,2]
[377429833,1754409059788,-756.93,0.00029315,2]
[377429834,1754409059797,-1414.05,0.00029315,2]
[377429835,1754409059807,-460.0,0.00029315,2]
[377429836,1754409059817,-460.0,0.00029315,2]
[377429837,1754409059828,-3511.45,0.00029315,2]
[377429838,1754409059839,-460.0,0.00029315,2]
[377429839,1754409059849,-234.29,0.00029315,2]
[377429840,1754409059858,-654.72,0.00029315,2]
[377429841,1754409059869,-673.35,0.00029315,2]
[377429842,1754409059879,-2081.36,0.00029315,2]
[377429843,1754409059888,-180.77539851,0.00029315,2]
[377429844,1754409059899,-1175.62,0.00029315,2]
[377429845,1754409059909,-460.0,0.00029315,2]
[377429846,1754409059920,-1689.44,0.00029315,2]
[377429847,1754409059929,-460.0,0.00029315,2]
[377429848,1754409059939,-1728.56,0.00029315,2]
[377429849,1754409059949,-697.8,0.00029315,2]
[377429851,1754409059959,-982.92,0.00029315,2]
[377429853,1754409059968,-460.0,0.00029315,2]
[377429855,1754409059978,-708.67,0.00029315,2]
[377429857,1754409059990,-1169.66,0.00029315,2]
[377429859,1754409060000,-839.68,0.00029315,2]
[377429860,1754409060010,-471.12566077,0.00029315,2]
[377429861,1754409060020,-460.0,0.00029315,2]
[377429862,1754409060030,-570.44,0.00029315,2]
[377429863,1754409060040,-460.0,0.00029315,2]
[377429864,1754409060051,-460.0,0.00029315,2]
[377429865,1754409060061,-460.0,0.00029315,2]
[377429866,1754409060075,-961.19,0.00029315,2]
[377429867,1754409060086,-460.0,0.00029315,2]
[377429868,1754409060096,-460.0,0.00029315,2]
[377429869,1754409060106,-460.0,0.00029315,2]
[377429870,1754409060116,-471.73,0.00029315,2]
[377429871,1754409060125,-460.0,0.00029315,2]
[377429873,1754409060134,-460.0,0.00029315,2]
[377429875,1754409060144,-2396.86,0.00029315,2]
[377429876,1754409060154,-789.91,0.00029315,2]
[377429877,1754409060164,-460.0,0.00029315,2]
[377429878,1754409060174,-871.01,0.00029315,2]
[377429879,1754409060183,-460.0,0.00029315,2]
[377429880,1754409060194,-365.6701697,0.00029315,2]
[377429881,1754409060204,-711.15,0.00029315,2]
[377429882,1754409060214,-1056.26,0.00029315,2]
[377429883,1754409060224,-460.0,0.00029315,2]
[377429885,1754409060234,-1053.24,0.00029315,2]
[377429887,1754409060244,-468.11,0.00029315,2]
[377429888,1754409060255,-642.56,0.00029315,2]
[377429889,1754409060265,-709.8,0.00029315,2]
[377429890,1754409060275,-162.42166547,0.00029315,2]
[377429891,1754409060285,-514.83,0.00029315,2]
[377429892,1754409060295,-460.0,0.00029315,2]
[377429893,1754409060304,-460.0,0.00029315,2]
[377429894,1754409060314,-1935.53,0.00029315,2]
[377429895,1754409060326,-1191.82,0.00029315,2]
[377429896,1754409060336,-490.45,0.00029315,2]
[377429897,1754409060345,-1284.43,0.00029315,2]
[377429898,1754409060356,-546.3,0.00029315,2]
[377429899,1754409060367,-676.59,0.00029315,2]
[377429900,1754409060376,-460.0,0.00029315,2]
[377429901,1754409060386,-460.0,0.00029315,2]
[377429902,1754409060397,-541.21,0.00029315,2]
[377429903,1754409060408,-740.58,0.00029315,2]
[377429904,1754409060418,-460.0,0.00029315,2]
[377429905,1754409060431,-525.71769394,0.00029315,2]
[377429906,1754409060442,-460.0,0.00029315,2]
[377429907,1754409060452,-231.06983737,0.00029315,2]
[377429909,1754409060463,-500.0,0.00029315,2]
[377429911,1754409060473,-556.84,0.00029315,2]
[377429913,1754409060483,-460.0,0.00029315,2]
[377429914,1754409060492,-474.81770387,0.00029315,2]
[377429915,1754409060502,-460.0,0.00029315,2]
[377429916,1754409060512,-460.0,0.00029315,2]
[377429917,1754409060522,-4337.79,0.00029315,2]
[377429918,1754409060532,-300.0,0.00029316,5]
[377429919,1754409060542,-465.17304523,0.00029349,2]
[377429920,1754409060551,-460.0,0.00029349,2]
[377429921,1754409060561,-460.0,0.00029349,2]
[377429922,1754409060572,-314.43341498,0.0002935,5]
[377429923,1754409060582,-460.0,0.0002935,2]
[377429925,1754409060591,-460.0,0.0002935,2]
[377429926,1754409060600,-549.47,0.0002935,2]
[377429927,1754409060610,-215.79933557,0.0002935,2]
[377429928,1754409060620,-566.7,0.0002935,2]
[377429929,1754409060630,-467.41,0.0002935,2]
[377429930,1754409060708,-460.0,0.0002935,2]
[377429931,1754409060718,-550.70363282,0.0002935,2]
[377429932,1754409060727,-521.76301085,0.00029356,2]
[377429933,1754409060737,-460.0,0.00029356,2]
[377429934,1754409060748,-1382.4,0.00029356,2]
[377429935,1754409060758,-84687.25,0.00029356,2]
[377429936,1754409060768,-556.78,0.00029356,2]
[377429937,1754409060777,-460.0,0.00029361,2]
[377429938,1754409060787,-151.0,0.00029418,7]
[377429939,1754409060796,-151.0,0.00029418,7]
[377429940,1754409060806,-151.0,0.00029418,7]
[377429941,1754409060815,-151.0,0.00029418,7]
[377429942,1754409060827,-164.987345,0.00029418,7]
[377429943,1754409060836,-195.826118,0.00029418,7]
[377429944,1754409060846,-195.826118,0.00029418,7]
[377429945,1754409060856,-2047.25824536,0.00029452,2]
[377429946,1754409060866,-523.22775741,0.00029477,2]
[377429948,1754409060876,-1000.0,0.000295,3]
[377429950,1754409060885,-153.0,0.00029508,2]
[377429952,1754409060895,-153.0,0.00029508,2]
[377429953,1754409060905,-153.0,0.00029508,2]
[377429954,1754409060914,-153.0,0.00029508,2]
[377429955,1754409060924,-153.0,0.00029508,2]
[377429956,1754409060934,-153.0,0.00029508,2]
[377429957,1754409060943,-153.0,0.00029508,2]
[377429958,1754409060952,-153.0,0.00029508,2]
[377429959,1754409060962,-153.0,0.00029508,2]
[377429960,1754409060972,-153.0,0.00029508,2]
[377429961,1754409060981,-153.0,0.00029508,2]
[377429962,1754409060994,-153.0,0.00029508,2]
[377429963,1754409061004,-153.0,0.00029508,2]
[377429964,1754409061014,-151.0,0.00029558,7]
[377429965,1754409061023,-1212.8,0.00029558,2]
[377429966,1754409061032,-472.47,0.00029558,2]
[377429967,1754409061042,-2500.0,0.00029564,5]
[377429968,1754409061052,-211.48398829,0.00029589,2]
[377429969,1754409061061,-460.0,0.00029589,2]
[377429970,1754409061074,-460.0,0.00029589,2]
[377429971,1754409061083,-460.0,0.00029589,2]
[377429972,1754409061093,-460.0,0.00029589,2]
[377429973,1754409061103,-845.72,0.00029589,2]
[377429974,1754409061113,-619.42,0.00029589,2]
[377429975,1754409061123,-460.0,0.00029589,2]
[377429976,1754409061133,-460.0,0.00029589,2]
[377429977,1754409061142,-460.0,0.00029589,2]
[377429978,1754409061152,-799.22,0.00029589,2]
[377429979,1754409061162,-506.26,0.00029589,2]
[377429980,1754409061171,-460.0,0.00029589,2]
[377429981,1754409061186,-460.0,0.00029589,2]
[377429982,1754409061206,-911.51,0.00029589,2]
[377429983,1754409061222,-460.0,0.00029589,2]
[377429984,1754409061241,-557.39,0.00029589,2]
[377429985,1754409061260,-756.93,0.00029589,2]
[377429986,1754409061277,-1414.05,0.00029589,2]
[377429987,1754409061295,-460.0,0.00029589,2]
[377429988,1754409061310,-460.0,0.00029589,2]
[377429989,1754409061329,-460.0,0.00029589,2]
[377429990,1754409061352,-3511.45,0.00029589,2]
[377429991,1754409061370,-654.72,0.00029589,2]
[377429992,1754409061383,-673.35,0.00029589,2]
[377429993,1754409061402,-2081.36,0.00029589,2]
[377429994,1754409061417,-1175.62,0.00029589,2]
[377429995,1754409061434,-1689.44,0.00029589,2]
[377429996,1754409061447,-317.07535462,0.00029589,2]
[377429997,1754409061461,-1728.56,0.00029589,2]
[377429998,1754409061476,-697.8,0.00029589,2]
[377429999,1754409061491,-982.92,0.00029589,2]
[377430000,1754409061507,-460.0,0.00029589,2]
[377430001,1754409061523,-708.67,0.00029589,2]
[377430002,1754409061538,-1169.66,0.00029589,2]
[377430003,1754409061553,-839.68,0.00029589,2]
[377430004,1754409061568,-460.0,0.00029589,2]
[377430005,1754409061585,-570.44,0.00029589,2]
[377430006,1754409061600,-475.3312275,0.00029589,2]
[377430007,1754409061615,-460.0,0.00029589,2]
[377430008,1754409061630,-460.0,0.00029589,2]
[377430009,1754409061645,-961.19,0.00029589,2]
[377430010,1754409061661,-460.0,0.00029589,2]
[377430011,1754409061676,-460.0,0.00029589,2]
[377430012,1754409061690,-519.76571343,0.00029589,2]
[377430013,1754409061705,-471.73,0.00029589,2]
[377430014,1754409061720,-460.0,0.00029589,2]
[377430015,1754409061734,-460.0,0.00029589,2]
[377430016,1754409061748,-2396.86,0.00029589,2]
[377430017,1754409061763,-460.0,0.00029589,2]
[377430018,1754409061779,-789.91,0.00029589,2]
[377430019,1754409061795,-871.01,0.00029589,2]
[377430020,1754409061810,-460.0,0.00029589,2]
[377430021,1754409061828,-711.15,0.00029589,2]
[377430022,1754409061843,-1056.26,0.00029589,2]